[Event "Late-Titled-Tuesday-Blitz-November-28-2023"]
[Site "Chess.com"]
[Date "2023.11.28"]
[Round "8"]
[White "Andrei_Skvortsov"]
[Black "ChristopherYoo"]
[Result "1-0"]
[WhiteElo "2774"]
[BlackElo "3011"]
[TimeControl "180+1"]
[EndTime "15:27:19 PST"]
[Termination "Andrei_Skvortsov won by checkmate"]

1. e4 {[%clk 0:03:00.9]} 1... c5 {[%clk 0:02:57.7]} 2. d4 {[%clk 0:03:00.3]}
2... cxd4 {[%clk 0:02:57.4]} 3. Qxd4 {[%clk 0:03:01.2]} 3... Nc6 {[%clk
0:02:57.4]} 4. Qd3 {[%clk 0:03:02.1]} 4... g6 {[%clk 0:02:53]} 5. Nc3 {[%clk
0:03:02.5]} 5... Bg7 {[%clk 0:02:52.8]} 6. Nf3 {[%clk 0:03:03.2]} 6... Nf6
{[%clk 0:02:49.7]} 7. Be2 {[%clk 0:03:03.4]} 7... O-O {[%clk 0:02:49.4]} 8. O-O
{[%clk 0:03:03.8]} 8... d6 {[%clk 0:02:42.7]} 9. Nd5 {[%clk 0:03:03.8]} 9... Bg4
{[%clk 0:02:37.8]} 10. c3 {[%clk 0:03:03.7]} 10... Nd7 {[%clk 0:02:32.8]} 11.
Bg5 {[%clk 0:03:00.2]} 11... h6 {[%clk 0:02:29.9]} 12. Bh4 {[%clk 0:03:00]}
12... Nc5 {[%clk 0:02:28.4]} 13. Qc2 {[%clk 0:02:53.5]} 13... g5 {[%clk
0:02:21.8]} 14. Bg3 {[%clk 0:02:53.1]} 14... e6 {[%clk 0:02:19]} 15. Ne3 {[%clk
0:02:49.3]} 15... Bxf3 {[%clk 0:02:18.7]} 16. Bxf3 {[%clk 0:02:50.2]} 16... Ne5
{[%clk 0:02:16.1]} 17. Be2 {[%clk 0:02:48.1]} 17... Qe7 {[%clk 0:02:09.5]} 18.
Rad1 {[%clk 0:02:42.8]} 18... Rac8 {[%clk 0:02:08.6]} 19. Qb1 {[%clk 0:02:41.4]}
19... Rfd8 {[%clk 0:02:07.8]} 20. Rd2 {[%clk 0:02:34.1]} 20... a6 {[%clk
0:02:01.7]} 21. Rfd1 {[%clk 0:02:33.9]} 21... b5 {[%clk 0:02:02.4]} 22. f3
{[%clk 0:02:13.7]} 22... h5 {[%clk 0:01:45.9]} 23. h3 {[%clk 0:02:10.7]} 23...
Na4 {[%clk 0:01:33.5]} 24. Nc2 {[%clk 0:02:05.8]} 24... h4 {[%clk 0:01:26]} 25.
Bf2 {[%clk 0:02:05.6]} 25... Ng6 {[%clk 0:01:19.1]} 26. Nb4 {[%clk 0:02:00.8]}
26... a5 {[%clk 0:01:13.7]} 27. Nd3 {[%clk 0:02:01]} 27... d5 {[%clk 0:01:09.9]}
28. exd5 {[%clk 0:01:59.8]} 28... Rxd5 {[%clk 0:01:10.8]} 29. Be3 {[%clk
0:01:54.9]} 29... Rcd8 {[%clk 0:01:08.2]} 30. Nf2 {[%clk 0:01:54.3]} 30... Bxc3
{[%clk 0:00:46.4]} 31. bxc3 {[%clk 0:01:31.9]} 31... Nxc3 {[%clk 0:00:45.3]} 32.
Qc2 {[%clk 0:01:28.1]} 32... Nxd1 {[%clk 0:00:45]} 33. Rxd1 {[%clk 0:01:19.7]}
33... Rxd1+ {[%clk 0:00:44.1]} 34. Nxd1 {[%clk 0:01:19.4]} 34... Qb4 {[%clk
0:00:34.3]} 35. Bxg5 {[%clk 0:01:12.8]} 35... Qe1+ {[%clk 0:00:32.8]} 36. Bf1
{[%clk 0:01:04.7]} 36... Rxd1 {[%clk 0:00:31.5]} 37. Qf2 {[%clk 0:00:45]} 37...
Qxf2+ {[%clk 0:00:31.3]} 38. Kxf2 {[%clk 0:00:45.9]} 38... Ra1 {[%clk
0:00:30.9]} 39. Bxb5 {[%clk 0:00:43.9]} 39... Rxa2+ {[%clk 0:00:31]} 40. Ke3
{[%clk 0:00:37.5]} 40... Rxg2 {[%clk 0:00:30]} 41. Bd8 {[%clk 0:00:38.2]} 41...
Rg3 {[%clk 0:00:27.2]} 42. Ba4 {[%clk 0:00:31.9]} 42... Rxh3 {[%clk 0:00:26.7]}
43. Bxa5 {[%clk 0:00:28.4]} 43... Rh1 {[%clk 0:00:26.5]} 44. Bc7 {[%clk
0:00:27]} 44... Rc1 {[%clk 0:00:24.9]} 45. Bh2 {[%clk 0:00:24.2]} 45... Rc3+
{[%clk 0:00:24.7]} 46. Kf2 {[%clk 0:00:22]} 46... Rc2+ {[%clk 0:00:23.8]} 47.
Bxc2 {[%clk 0:00:22]} 47... Ne7 {[%clk 0:00:22.5]} 48. Bd6 {[%clk 0:00:19.6]}
48... Nd5 {[%clk 0:00:22.7]} 49. Be4 {[%clk 0:00:18.1]} 49... Nf6 {[%clk
0:00:23]} 50. Be7 {[%clk 0:00:17.1]} 50... Nh5 {[%clk 0:00:09.2]} 51. Bxh4
{[%clk 0:00:16.1]} 51... Kg7 {[%clk 0:00:09.7]} 52. Bd8 {[%clk 0:00:14.8]} 52...
f5 {[%clk 0:00:09.3]} 53. Bb7 {[%clk 0:00:15.2]} 53... e5 {[%clk 0:00:08.5]} 54.
Ke3 {[%clk 0:00:14.7]} 54... Kg6 {[%clk 0:00:05.9]} 55. Bc8 {[%clk 0:00:14.5]}
55... Nf4 {[%clk 0:00:05.1]} 56. Ba5 {[%clk 0:00:13.1]} 56... Nd5+ {[%clk
0:00:04.8]} 57. Kf2 {[%clk 0:00:13.5]} 57... e4 {[%clk 0:00:04.7]} 58. fxe4
{[%clk 0:00:12.5]} 58... fxe4 {[%clk 0:00:05.6]} 59. Bb7 {[%clk 0:00:13]} 59...
Nf6 {[%clk 0:00:05.5]} 60. Ke3 {[%clk 0:00:13.5]} 60... Kf5 {[%clk 0:00:06.2]}
61. Bc8+ {[%clk 0:00:12.9]} 61... Ke5 {[%clk 0:00:03]} 62. Bc3+ {[%clk
0:00:12.5]} 62... Kd6 {[%clk 0:00:02.5]} 63. Bxf6 {[%clk 0:00:13.1]} 63... Kc7
{[%clk 0:00:03.4]} 64. Bg4 {[%clk 0:00:13.1]} 64... Kd6 {[%clk 0:00:04]} 65. Be2
{[%clk 0:00:13.9]} 65... Kc5 {[%clk 0:00:04.9]} 66. Bh8 {[%clk 0:00:14.1]} 66...
Kd6 {[%clk 0:00:05.8]} 67. Bg7 {[%clk 0:00:15]} 67... Kd5 {[%clk 0:00:06.3]} 68.
Bh6 {[%clk 0:00:15.9]} 68... Ke6 {[%clk 0:00:07]} 69. Bf4 {[%clk 0:00:16.8]}
69... Kf5 {[%clk 0:00:07.5]} 70. Bg3 {[%clk 0:00:17.7]} 70... Ke6 {[%clk
0:00:08.1]} 71. Be1 {[%clk 0:00:18.6]} 71... Kf6 {[%clk 0:00:08.9]} 72. Bd2
{[%clk 0:00:19.5]} 72... Kf5 {[%clk 0:00:09.7]} 73. Bc1 {[%clk 0:00:20.4]} 73...
Ke5 {[%clk 0:00:10.3]} 74. Bb2+ {[%clk 0:00:21.3]} 74... Kd5 {[%clk 0:00:11.2]}
75. Ba3 {[%clk 0:00:21.8]} 75... Ke6 {[%clk 0:00:12.1]} 76. Bf8 {[%clk
0:00:22.1]} 76... Kf5 {[%clk 0:00:13]} 77. Bd1 {[%clk 0:00:20.5]} 77... Ke5
{[%clk 0:00:13.9]} 78. Bb4 {[%clk 0:00:20.7]} 78... Kd5 {[%clk 0:00:14.4]} 79.
Be1 {[%clk 0:00:21.6]} 79... Ke5 {[%clk 0:00:14.8]} 80. Bc2 {[%clk 0:00:22]}
80... Kd5 {[%clk 0:00:15.4]} 81. Bb1 {[%clk 0:00:22.4]} 81... Ke5 {[%clk
0:00:16.3]} 82. Bf2 {[%clk 0:00:22.4]} 82... Ke6 {[%clk 0:00:17.2]} 83. Kd4
{[%clk 0:00:21.1]} 83... Kf6 {[%clk 0:00:17.7]} 84. Be3 {[%clk 0:00:21.2]} 84...
Ke6 {[%clk 0:00:18.6]} 85. Bxe4 {[%clk 0:00:21.4]} 85... Kf6 {[%clk 0:00:19.5]}
86. Bf4 {[%clk 0:00:21.7]} 86... Ke6 {[%clk 0:00:20.4]} 87. Be5 {[%clk
0:00:20.7]} 87... Ke7 {[%clk 0:00:20.8]} 88. Bd5 {[%clk 0:00:20.9]} 88... Kd7
{[%clk 0:00:21.3]} 89. Kc5 {[%clk 0:00:21.3]} 89... Ke7 {[%clk 0:00:22.2]} 90.
Bc4 {[%clk 0:00:20.5]} 90... Kd7 {[%clk 0:00:22.5]} 91. Kd4 {[%clk 0:00:20.2]}
91... Ke7 {[%clk 0:00:23.4]} 92. Bd5 {[%clk 0:00:19.4]} 92... Kd7 {[%clk
0:00:24.3]} 93. Kc5 {[%clk 0:00:16.9]} 93... Ke7 {[%clk 0:00:25.2]} 94. Kb6
{[%clk 0:00:17.2]} 94... Kd7 {[%clk 0:00:25.5]} 95. Kb7 {[%clk 0:00:17.7]} 95...
Ke8 {[%clk 0:00:26]} 96. Kc8 {[%clk 0:00:16.5]} 96... Ke7 {[%clk 0:00:26.9]} 97.
Kc7 {[%clk 0:00:16.9]} 97... Ke8 {[%clk 0:00:27.5]} 98. Kd6 {[%clk 0:00:17.4]}
98... Kf8 {[%clk 0:00:27.5]} 99. Ke6 {[%clk 0:00:15.4]} 99... Ke8 {[%clk
0:00:28]} 100. Bc7 {[%clk 0:00:13]} 100... Kf8 {[%clk 0:00:28.4]} 101. Kf6
{[%clk 0:00:12.6]} 101... Ke8 {[%clk 0:00:29]} 102. Bc6+ {[%clk 0:00:13]} 102...
Kf8 {[%clk 0:00:29.4]} 103. Bd6+ {[%clk 0:00:13.4]} 103... Kg8 {[%clk
0:00:29.6]} 104. Kg6 {[%clk 0:00:13.6]} 104... Kh8 {[%clk 0:00:30.3]} 105. Bd7
{[%clk 0:00:13.4]} 105... Kg8 {[%clk 0:00:30.8]} 106. Be6+ {[%clk 0:00:13.8]}
106... Kh8 {[%clk 0:00:31.6]} 107. Be5# {[%clk 0:00:14.4]} 1-0

[Event "Late-Titled-Tuesday-Blitz-November-28-2023"]
[Site "Chess.com"]
[Date "2023.11.28"]
[Round "8"]
[White "Cidonka"]
[Black "VitaliyChayka"]
[Result "1/2-1/2"]
[WhiteElo "2298"]
[BlackElo "2420"]
[TimeControl "180+1"]
[EndTime "15:28:06 PST"]
[Termination "Game drawn - insufficient material"]

1. e4 {[%clk 0:03:00.9]} 1... d6 {[%clk 0:03:00.3]} 2. d4 {[%clk 0:03:00.8]}
2... Nf6 {[%clk 0:03:00.7]} 3. Nc3 {[%clk 0:03:01.1]} 3... e5 {[%clk 0:03:01.4]}
4. Nf3 {[%clk 0:03:01.1]} 4... Nbd7 {[%clk 0:03:01.4]} 5. Bc4 {[%clk 0:03:01.2]}
5... Be7 {[%clk 0:03:01.7]} 6. a4 {[%clk 0:03:01.3]} 6... O-O {[%clk 0:03:01.4]}
7. O-O {[%clk 0:03:01.5]} 7... a5 {[%clk 0:03:01.9]} 8. Re1 {[%clk 0:02:59.6]}
8... c6 {[%clk 0:03:02.5]} 9. h3 {[%clk 0:02:59.1]} 9... exd4 {[%clk 0:03:02.8]}
10. Qxd4 {[%clk 0:02:56.8]} 10... Nc5 {[%clk 0:03:03.7]} 11. Bg5 {[%clk
0:02:54.8]} 11... Be6 {[%clk 0:02:48.7]} 12. Rad1 {[%clk 0:02:54.4]} 12... Qb6
{[%clk 0:02:44.5]} 13. Bf1 {[%clk 0:02:27.1]} 13... Qb4 {[%clk 0:02:28.6]} 14.
b3 {[%clk 0:02:13.8]} 14... Rad8 {[%clk 0:02:23.2]} 15. Bf4 {[%clk 0:01:54.8]}
15... Rfe8 {[%clk 0:02:12.8]} 16. Bg3 {[%clk 0:01:20.9]} 16... Nh5 {[%clk
0:01:59.8]} 17. Bh2 {[%clk 0:01:16.8]} 17... Nf6 {[%clk 0:01:41.5]} 18. Qxb4
{[%clk 0:01:05]} 18... axb4 {[%clk 0:01:41.1]} 19. Na2 {[%clk 0:01:05.5]} 19...
Nxa4 {[%clk 0:01:26.6]} 20. Ng5 {[%clk 0:00:51.4]} 20... Nc3 {[%clk 0:01:18.1]}
21. Nxc3 {[%clk 0:00:51]} 21... bxc3 {[%clk 0:01:19]} 22. Nxe6 {[%clk
0:00:51.4]} 22... fxe6 {[%clk 0:01:19.7]} 23. Re3 {[%clk 0:00:39]} 23... b5
{[%clk 0:00:56.6]} 24. Rxc3 {[%clk 0:00:37.1]} 24... Rc8 {[%clk 0:00:45.3]} 25.
Re3 {[%clk 0:00:31]} 25... e5 {[%clk 0:00:40.9]} 26. c4 {[%clk 0:00:27.9]} 26...
bxc4 {[%clk 0:00:35.6]} 27. Bxc4+ {[%clk 0:00:27.7]} 27... d5 {[%clk 0:00:29.5]}
28. exd5 {[%clk 0:00:26.1]} 28... cxd5 {[%clk 0:00:30.4]} 29. Bb5 {[%clk
0:00:25.3]} 29... Red8 {[%clk 0:00:19.6]} 30. Bxe5 {[%clk 0:00:25.1]} 30... Ne4
{[%clk 0:00:10.3]} 31. Bd4 {[%clk 0:00:22]} 31... Rb8 {[%clk 0:00:08.9]} 32. Bc6
{[%clk 0:00:18.5]} 32... Bg5 {[%clk 0:00:09.2]} 33. Bxd5+ {[%clk 0:00:15.1]}
33... Rxd5 {[%clk 0:00:10.1]} 34. Rxe4 {[%clk 0:00:15.6]} 34... Rxb3 {[%clk
0:00:10.4]} 35. Rg4 {[%clk 0:00:12.9]} 35... h5 {[%clk 0:00:09.1]} 36. Re4
{[%clk 0:00:11.6]} 36... Bf6 {[%clk 0:00:05]} 37. Kh2 {[%clk 0:00:05]} 37... Rb4
{[%clk 0:00:05]} 38. Bxf6 {[%clk 0:00:04.8]} 38... Rxd1 {[%clk 0:00:01.7]} 39.
Rxb4 {[%clk 0:00:05]} 39... gxf6 {[%clk 0:00:02.2]} 40. g4 {[%clk 0:00:05]}
40... hxg4 {[%clk 0:00:02.1]} 41. hxg4 {[%clk 0:00:04]} 41... Kf7 {[%clk
0:00:02.7]} 42. Kg3 {[%clk 0:00:04.4]} 42... Kg6 {[%clk 0:00:03.2]} 43. Rb5
{[%clk 0:00:04.7]} 43... Rd3+ {[%clk 0:00:03.6]} 44. f3 {[%clk 0:00:05]} 44...
Ra3 {[%clk 0:00:04.1]} 45. Kf4 {[%clk 0:00:05.5]} 45... Ra4+ {[%clk 0:00:04.6]}
46. Kg3 {[%clk 0:00:06.1]} 46... Ra3 {[%clk 0:00:05.5]} 47. Rc5 {[%clk
0:00:06.5]} 47... Ra4 {[%clk 0:00:06]} 48. Rd5 {[%clk 0:00:06.8]} 48... Ra3
{[%clk 0:00:06.4]} 49. Rd4 {[%clk 0:00:07.1]} 49... Rb3 {[%clk 0:00:06.9]} 50.
Rf4 {[%clk 0:00:07.5]} 50... Ra3 {[%clk 0:00:07.5]} 51. Re4 {[%clk 0:00:07.7]}
51... Rb3 {[%clk 0:00:08.2]} 52. Kf2 {[%clk 0:00:08.2]} 52... Ra3 {[%clk
0:00:08.6]} 53. Re3 {[%clk 0:00:08.7]} 53... Ra2+ {[%clk 0:00:09]} 54. Kg3
{[%clk 0:00:08.9]} 54... Ra4 {[%clk 0:00:09.9]} 55. Rd3 {[%clk 0:00:09.3]} 55...
Rb4 {[%clk 0:00:10.2]} 56. f4 {[%clk 0:00:09.8]} 56... Ra4 {[%clk 0:00:10.5]}
57. Rd5 {[%clk 0:00:10]} 57... Ra3+ {[%clk 0:00:10.7]} 58. Kh4 {[%clk
0:00:10.5]} 58... Ra1 {[%clk 0:00:10.6]} 59. Kg3 {[%clk 0:00:10]} 59... Ra3+
{[%clk 0:00:09.9]} 60. Kh4 {[%clk 0:00:09.1]} 60... Ra1 {[%clk 0:00:10.3]} 61.
Rd6 {[%clk 0:00:09.1]} 61... Rh1+ {[%clk 0:00:09.5]} 62. Kg3 {[%clk 0:00:09.5]}
62... Rg1+ {[%clk 0:00:10.2]} 63. Kf3 {[%clk 0:00:09.9]} 63... Rf1+ {[%clk
0:00:10.5]} 64. Ke4 {[%clk 0:00:06.8]} 64... Re1+ {[%clk 0:00:10.4]} 65. Kf3
{[%clk 0:00:07.2]} 65... Rf1+ {[%clk 0:00:10.3]} 66. Kg3 {[%clk 0:00:07.5]}
66... Rg1+ {[%clk 0:00:10.5]} 67. Kh3 {[%clk 0:00:08]} 67... Rh1+ {[%clk
0:00:10.3]} 68. Kg2 {[%clk 0:00:08.3]} 68... Rh8 {[%clk 0:00:07.4]} 69. g5
{[%clk 0:00:08.3]} 69... Rf8 {[%clk 0:00:07.4]} 70. Kg3 {[%clk 0:00:07.2]} 70...
Kf5 {[%clk 0:00:07.3]} 71. Rd5+ {[%clk 0:00:04]} 71... Ke4 {[%clk 0:00:07.7]}
72. Rd6 {[%clk 0:00:02.3]} 72... Kf5 {[%clk 0:00:03.4]} 73. Kf3 {[%clk
0:00:02.2]} 73... fxg5 {[%clk 0:00:03.5]} 74. Rd5+ {[%clk 0:00:02.7]} 74... Kf6
{[%clk 0:00:03]} 75. Rxg5 {[%clk 0:00:03.6]} 75... Ra8 {[%clk 0:00:02.6]} 76.
Kg4 {[%clk 0:00:04.1]} 76... Ra1 {[%clk 0:00:02.3]} 77. Rb5 {[%clk 0:00:05]}
77... Rg1+ {[%clk 0:00:01.9]} 78. Kf3 {[%clk 0:00:05.5]} 78... Rf1+ {[%clk
0:00:02.6]} 79. Kg3 {[%clk 0:00:05.9]} 79... Rg1+ {[%clk 0:00:02.8]} 80. Kf2
{[%clk 0:00:06.3]} 80... Ra1 {[%clk 0:00:02.9]} 81. Kf3 {[%clk 0:00:06.3]} 81...
Ra3+ {[%clk 0:00:03.1]} 82. Kg4 {[%clk 0:00:05.5]} 82... Kg7 {[%clk 0:00:02.7]}
83. Rb6 {[%clk 0:00:05.5]} 83... Ra5 {[%clk 0:00:02.7]} 84. f5 {[%clk
0:00:05.1]} 84... Ra1 {[%clk 0:00:03.1]} 85. Rg6+ {[%clk 0:00:04.5]} 85... Kf7
{[%clk 0:00:02.9]} 86. Rb6 {[%clk 0:00:04.5]} 86... Rg1+ {[%clk 0:00:02.6]} 87.
Kf4 {[%clk 0:00:05]} 87... Rf1+ {[%clk 0:00:03.1]} 88. Ke5 {[%clk 0:00:05.5]}
88... Re1+ {[%clk 0:00:03.7]} 89. Kf4 {[%clk 0:00:05.9]} 89... Rf1+ {[%clk
0:00:04.2]} 90. Kg5 {[%clk 0:00:05.6]} 90... Rg1+ {[%clk 0:00:04.7]} 91. Kh6
{[%clk 0:00:06]} 91... Rh1+ {[%clk 0:00:04.9]} 92. Kg5 {[%clk 0:00:06.1]} 92...
Rg1+ {[%clk 0:00:05.4]} 93. Kh4 {[%clk 0:00:06.6]} 93... Rh1+ {[%clk 0:00:05.6]}
94. Kg4 {[%clk 0:00:07]} 94... Rg1+ {[%clk 0:00:05.9]} 95. Kh3 {[%clk
0:00:07.4]} 95... Rh1+ {[%clk 0:00:06.2]} 96. Kg3 {[%clk 0:00:07.4]} 96... Rg1+
{[%clk 0:00:06.4]} 97. Kf2 {[%clk 0:00:07.8]} 97... Ra1 {[%clk 0:00:06.5]} 98.
Kf3 {[%clk 0:00:07.9]} 98... Rf1+ {[%clk 0:00:06.4]} 99. Ke4 {[%clk 0:00:08.4]}
99... Re1+ {[%clk 0:00:06.8]} 100. Kd3 {[%clk 0:00:09]} 100... Rd1+ {[%clk
0:00:06.9]} 101. Ke2 {[%clk 0:00:09.2]} 101... Ra1 {[%clk 0:00:07.1]} 102. Rc6
{[%clk 0:00:09.4]} 102... Ra5 {[%clk 0:00:06.9]} 103. f6 {[%clk 0:00:08.2]}
103... Rf5 {[%clk 0:00:06.9]} 104. Ke3 {[%clk 0:00:08.7]} 104... Rxf6 {[%clk
0:00:07.3]} 105. Rxf6+ {[%clk 0:00:09.4]} 105... Kxf6 {[%clk 0:00:08.2]} 1/2-1/2

[Event "Late-Titled-Tuesday-Blitz-November-28-2023"]
[Site "Chess.com"]
[Date "2023.11.28"]
[Round "9"]
[White "grandemestregringo"]
[Black "SalihEke"]
[Result "1-0"]
[WhiteElo "2658"]
[BlackElo "2510"]
[TimeControl "180+1"]
[EndTime "15:35:49 PST"]
[Termination "grandemestregringo won by resignation"]

1. f4 {[%clk 0:03:00.9]} 1... d5 {[%clk 0:02:59.1]} 2. Nf3 {[%clk 0:03:00.9]}
2... Nf6 {[%clk 0:02:59.7]} 3. e3 {[%clk 0:03:01.1]} 3... g6 {[%clk 0:03:00.3]}
4. c4 {[%clk 0:03:00.7]} 4... Bg7 {[%clk 0:03:01]} 5. cxd5 {[%clk 0:03:01.2]}
5... Nxd5 {[%clk 0:03:01.6]} 6. d4 {[%clk 0:03:01.8]} 6... O-O {[%clk
0:03:02.1]} 7. e4 {[%clk 0:03:01.2]} 7... Nb6 {[%clk 0:03:02.4]} 8. Nc3 {[%clk
0:03:01.7]} 8... c5 {[%clk 0:02:58.7]} 9. d5 {[%clk 0:03:02]} 9... e6 {[%clk
0:02:57.1]} 10. d6 {[%clk 0:02:54.2]} 10... e5 {[%clk 0:02:51.2]} 11. fxe5
{[%clk 0:02:52.1]} 11... Nc6 {[%clk 0:02:51.8]} 12. Bg5 {[%clk 0:02:51.4]} 12...
Qe8 {[%clk 0:02:44.5]} 13. Bb5 {[%clk 0:02:42]} 13... Bd7 {[%clk 0:02:41.7]} 14.
Bxc6 {[%clk 0:02:41]} 14... Bxc6 {[%clk 0:02:41.9]} 15. Be7 {[%clk 0:02:41.9]}
15... Bxe5 {[%clk 0:02:28.8]} 16. Nxe5 {[%clk 0:02:38.1]} 1-0

[Event "Late-Titled-Tuesday-Blitz-November-28-2023"]
[Site "Chess.com"]
[Date "2023.11.28"]
[Round "9"]
[White "cthulhuuu"]
[Black "NCchamp"]
[Result "1-0"]
[WhiteElo "2501"]
[BlackElo "2371"]
[TimeControl "180+1"]
[EndTime "15:37:13 PST"]
[Termination "cthulhuuu won by checkmate"]

1. e4 {[%clk 0:03:00.1]} 1... c6 {[%clk 0:02:59.4]} 2. d3 {[%clk 0:02:59.3]}
2... d5 {[%clk 0:03:00.3]} 3. Nd2 {[%clk 0:02:59.1]} 3... dxe4 {[%clk
0:02:55.5]} 4. dxe4 {[%clk 0:03:00]} 4... e5 {[%clk 0:02:52.6]} 5. Ngf3 {[%clk
0:03:00]} 5... f6 {[%clk 0:02:45.7]} 6. Nxe5 {[%clk 0:02:34.9]} 6... fxe5 {[%clk
0:02:41.6]} 7. Qh5+ {[%clk 0:02:35.3]} 7... Kd7 {[%clk 0:02:36.1]} 8. Nc4 {[%clk
0:02:35.2]} 8... Kc7 {[%clk 0:01:45.5]} 9. Qxe5+ {[%clk 0:02:28.7]} 9... Bd6
{[%clk 0:01:38.7]} 10. Qxg7+ {[%clk 0:02:26.7]} 10... Ne7 {[%clk 0:01:35.6]} 11.
Nxd6 {[%clk 0:02:18.8]} 11... Kxd6 {[%clk 0:01:35.4]} 12. Bf4+ {[%clk
0:02:13.4]} 12... Kc5 {[%clk 0:01:35.5]} 13. Qc3+ {[%clk 0:02:09.7]} 13... Kb6
{[%clk 0:01:29.8]} 14. Qb4# {[%clk 0:02:10]} 1-0

[Event "Late-Titled-Tuesday-Blitz-November-28-2023"]
[Site "Chess.com"]
[Date "2023.11.28"]
[Round "9"]
[White "YellowJacek"]
[Black "MathiasWomacka"]
[Result "0-1"]
[WhiteElo "2347"]
[BlackElo "2519"]
[TimeControl "180+1"]
[EndTime "15:37:21 PST"]
[Termination "MathiasWomacka won by resignation"]

1. c4 {[%clk 0:02:57.5]} 1... c5 {[%clk 0:02:59.7]} 2. g3 {[%clk 0:02:57.3]}
2... Nf6 {[%clk 0:02:58.8]} 3. Bg2 {[%clk 0:02:58.2]} 3... d5 {[%clk 0:02:57.7]}
4. cxd5 {[%clk 0:02:57.5]} 4... Nxd5 {[%clk 0:02:58.4]} 5. Nc3 {[%clk
0:02:58.2]} 5... Nc7 {[%clk 0:02:57]} 6. Nf3 {[%clk 0:02:58.4]} 6... Nc6 {[%clk
0:02:56.8]} 7. O-O {[%clk 0:02:58.5]} 7... e5 {[%clk 0:02:57.4]} 8. d3 {[%clk
0:02:57.3]} 8... Be7 {[%clk 0:02:58]} 9. Be3 {[%clk 0:02:55.9]} 9... O-O {[%clk
0:02:58.2]} 10. Qc1 {[%clk 0:02:49.2]} 10... Ne6 {[%clk 0:02:57.7]} 11. Na4
{[%clk 0:02:44.9]} 11... Qa5 {[%clk 0:02:36.1]} 12. b3 {[%clk 0:02:40.3]} 12...
Bd7 {[%clk 0:02:35.2]} 13. Nb2 {[%clk 0:02:26.1]} 13... Ned4 {[%clk 0:02:31.8]}
14. Nxd4 {[%clk 0:02:25.1]} 14... exd4 {[%clk 0:02:23.8]} 15. Bf4 {[%clk
0:02:20]} 15... Bg4 {[%clk 0:02:06.8]} 16. Re1 {[%clk 0:02:17.9]} 16... Rac8
{[%clk 0:02:04.8]} 17. Nc4 {[%clk 0:02:13.2]} 17... Qd8 {[%clk 0:02:03.5]} 18.
h3 {[%clk 0:02:07.5]} 18... Be6 {[%clk 0:02:01.1]} 19. Ne5 {[%clk 0:02:03.7]}
19... Nxe5 {[%clk 0:01:59.6]} 20. Bxe5 {[%clk 0:02:04.6]} 20... Qd7 {[%clk
0:01:59.6]} 21. Qf4 {[%clk 0:02:00.5]} 21... f6 {[%clk 0:01:56.8]} 0-1

[Event "Late-Titled-Tuesday-Blitz-November-28-2023"]
[Site "Chess.com"]
[Date "2023.11.28"]
[Round "9"]
[White "rdarruda"]
[Black "Schwindle"]
[Result "1-0"]
[WhiteElo "2520"]
[BlackElo "2380"]
[TimeControl "180+1"]
[EndTime "15:38:35 PST"]
[Termination "rdarruda won by resignation"]

1. d4 {[%clk 0:02:50.7]} 1... Nf6 {[%clk 0:03:00.1]} 2. Nf3 {[%clk 0:02:50.7]}
2... e6 {[%clk 0:03:00.3]} 3. c4 {[%clk 0:02:50.5]} 3... c5 {[%clk 0:02:57.4]}
4. d5 {[%clk 0:02:49.4]} 4... exd5 {[%clk 0:02:57.8]} 5. cxd5 {[%clk 0:02:50.3]}
5... d6 {[%clk 0:02:58.5]} 6. Nc3 {[%clk 0:02:50.4]} 6... g6 {[%clk 0:02:59.1]}
7. e4 {[%clk 0:02:50.6]} 7... Bg7 {[%clk 0:02:59.3]} 8. Be2 {[%clk 0:02:51.2]}
8... O-O {[%clk 0:02:59.4]} 9. O-O {[%clk 0:02:51.8]} 9... a6 {[%clk 0:03:00.1]}
10. a4 {[%clk 0:02:50.5]} 10... Re8 {[%clk 0:03:00.5]} 11. Nd2 {[%clk
0:02:49.6]} 11... Nbd7 {[%clk 0:02:54.3]} 12. f3 {[%clk 0:02:48.3]} 12... Nh5
{[%clk 0:02:52.7]} 13. Nc4 {[%clk 0:02:45.1]} 13... Ne5 {[%clk 0:02:43.5]} 14.
g4 {[%clk 0:02:36.7]} 14... Nxc4 {[%clk 0:02:42.3]} 15. Bxc4 {[%clk 0:02:35.8]}
15... Bd4+ {[%clk 0:02:42]} 16. Kg2 {[%clk 0:02:35.5]} 16... Ng7 {[%clk
0:02:37.4]} 17. Ne2 {[%clk 0:02:19.5]} 17... Be5 {[%clk 0:02:36.5]} 18. f4
{[%clk 0:02:13.7]} 18... Bf6 {[%clk 0:02:36.2]} 19. g5 {[%clk 0:02:13.9]} 19...
Be7 {[%clk 0:02:34.1]} 20. Ng3 {[%clk 0:02:13.8]} 20... Bd7 {[%clk 0:02:29.5]}
21. h4 {[%clk 0:02:01.4]} 21... b5 {[%clk 0:02:28.5]} 22. axb5 {[%clk
0:02:01.9]} 22... axb5 {[%clk 0:02:29]} 23. Rxa8 {[%clk 0:02:01.8]} 23... Qxa8
{[%clk 0:02:29.3]} 24. Be2 {[%clk 0:02:01.5]} 24... f5 {[%clk 0:02:21.3]} 25. e5
{[%clk 0:01:52.6]} 25... Rd8 {[%clk 0:02:07]} 26. Bf3 {[%clk 0:01:49.9]} 26...
Qa2 {[%clk 0:02:00.1]} 27. h5 {[%clk 0:01:42.8]} 27... dxe5 {[%clk 0:01:45]} 28.
fxe5 {[%clk 0:01:36.8]} 28... f4 {[%clk 0:01:45.6]} 29. Bxf4 {[%clk 0:01:33]}
29... Nf5 {[%clk 0:01:41.4]} 30. Nxf5 {[%clk 0:01:27]} 30... Bxf5 {[%clk
0:01:40.5]} 31. d6 {[%clk 0:01:22.7]} 31... Bf8 {[%clk 0:01:32.3]} 32. Bd5+
{[%clk 0:01:21.8]} 1-0

[Event "Late-Titled-Tuesday-Blitz-November-28-2023"]
[Site "Chess.com"]
[Date "2023.11.28"]
[Round "9"]
[White "TanitoluwaAps116"]
[Black "FontVella8"]
[Result "0-1"]
[WhiteElo "2679"]
[BlackElo "2591"]
[TimeControl "180+1"]
[EndTime "15:38:57 PST"]
[Termination "FontVella8 won by resignation"]

1. e4 {[%clk 0:02:59.6]} 1... c6 {[%clk 0:02:56.8]} 2. d4 {[%clk 0:02:56.6]}
2... d5 {[%clk 0:02:57.7]} 3. exd5 {[%clk 0:02:57.2]} 3... cxd5 {[%clk
0:02:57.4]} 4. Bd3 {[%clk 0:02:57.8]} 4... Nf6 {[%clk 0:02:57.6]} 5. c3 {[%clk
0:02:53.9]} 5... Nc6 {[%clk 0:02:57.7]} 6. Nf3 {[%clk 0:02:51.4]} 6... Bg4
{[%clk 0:02:55.5]} 7. h3 {[%clk 0:02:49.9]} 7... Bh5 {[%clk 0:02:55.2]} 8. O-O
{[%clk 0:02:50.4]} 8... e6 {[%clk 0:02:55.4]} 9. Re1 {[%clk 0:02:50.6]} 9... Bd6
{[%clk 0:02:53.8]} 10. Nbd2 {[%clk 0:02:46.5]} 10... Qc7 {[%clk 0:02:51.7]} 11.
Qc2 {[%clk 0:02:39.4]} 11... O-O {[%clk 0:02:49.3]} 12. b3 {[%clk 0:02:30.6]}
12... Rac8 {[%clk 0:02:48.5]} 13. Qb1 {[%clk 0:01:48.6]} 13... Bf4 {[%clk
0:02:27.5]} 14. Bb2 {[%clk 0:01:42.3]} 14... Rfd8 {[%clk 0:02:05.1]} 15. a3
{[%clk 0:01:29.3]} 15... a6 {[%clk 0:02:01.4]} 16. b4 {[%clk 0:01:24.2]} 16...
Ne7 {[%clk 0:01:59.9]} 17. Ne5 {[%clk 0:01:07.9]} 17... Bxd2 {[%clk 0:01:55.7]}
18. Rf1 {[%clk 0:00:51]} 18... Bf4 {[%clk 0:01:55.5]} 19. c4 {[%clk 0:00:38.7]}
19... dxc4 {[%clk 0:01:50.3]} 20. Nxc4 {[%clk 0:00:39.6]} 20... Ned5 {[%clk
0:01:42.4]} 21. Ne5 {[%clk 0:00:36.1]} 21... Bg6 {[%clk 0:01:34.5]} 0-1